fUSD/lending_fUSD_20250206
["ID","MTS","AMOUNT","RATE_DAILY","PERIOD"]
[351960648,1738861869464,-3013.77,0.00018353,2]
[351960649,1738861869474,-936.5,0.00018353,2]
[351960650,1738861869484,-1793.39,0.00018353,2]
[351960651,1738861869494,-1477.06,0.00018353,2]
[351960652,1738861869504,-1577.4,0.00018353,2]
[351960653,1738861869514,-5300.74,0.00018353,2]
[351960654,1738861869524,-1169.73,0.00018353,2]
[351960655,1738861869534,-2574.15,0.00018353,2]
[351960656,1738861869543,-2515.4,0.00018353,2]
[351960657,1738861869553,-2027.32,0.00018353,2]
[351960658,1738861869563,-2110.85,0.00018353,2]
[351960659,1738861869572,-1476.55,0.00018353,2]
[351960660,1738861869582,-1529.46,0.00018353,2]
[351960661,1738861869591,-2849.47,0.00018353,2]
[351960662,1738861869601,-1830.91,0.00018353,2]
[351960663,1738861869611,-3547.39,0.00018353,2]
[351960664,1738861869621,-1971.2,0.00018353,2]
[351960665,1738861869631,-500.0,0.00018353,2]
[351960666,1738861869642,-1234.07,0.00018353,2]
[351960667,1738861869652,-500.0,0.00018353,2]
[351960668,1738861869662,-1544.59,0.00018353,2]
[351960669,1738861869672,-1656.43,0.00018353,2]
[351960670,1738861869682,-1394.51,0.00018353,2]
[351960671,1738861869692,-3743.69,0.00018353,2]
[351960672,1738861869702,-963.12,0.00018353,2]
[351960673,1738861869712,-1700.26,0.00018353,2]
[351960674,1738861869722,-1311.59,0.00018353,2]
[351960675,1738861869731,-1736.78,0.00018353,2]
[351960676,1738861869740,-1017.17,0.00018353,2]
[351960677,1738861869749,-576.03,0.00018354,2]
[351960678,1738861869759,-568.39,0.00018354,2]
[351960679,1738861869768,-500.0,0.00018354,2]
[351960680,1738861869777,-1104.41,0.00018354,2]
[351960681,1738861869787,-1065.42,0.00018354,2]
[351960682,1738861869796,-689.15,0.00018354,2]
[351960683,1738861869806,-500.0,0.00018354,2]
[351960684,1738861869815,-500.0,0.00018354,2]
[351960685,1738861869824,-500.0,0.00018354,2]
[351960686,1738861869834,-500.0,0.00018354,2]
[351960687,1738861869843,-1002.74,0.00018354,2]
[351960688,1738861869853,-692.54,0.00018354,2]
[351960689,1738861869862,-738.1,0.00018354,2]
[351960690,1738861869871,-595.37,0.00018354,2]
[351960691,1738861869881,-500.0,0.00018354,2]
[351960692,1738861869891,-500.0,0.00018354,2]
[351960693,1738861869901,-863.61,0.00018354,2]
[351960694,1738861869911,-645.84,0.00018354,2]
[351960695,1738861869920,-500.0,0.00018354,2]
[351960696,1738861869930,-596.44,0.00018354,2]
[351960697,1738861869939,-800.76,0.00018354,2]
[351960698,1738861869949,-777.26,0.00018354,2]
[351960699,1738861869958,-500.0,0.00018354,2]
[351960700,1738861869968,-500.0,0.00018354,2]
[351960701,1738861869978,-548.07,0.00018354,2]
[351960702,1738861869987,-500.0,0.00018354,2]
[351960703,1738861869998,-500.0,0.00018354,2]
[351960704,1738861870008,-500.0,0.00018354,2]
[351960705,1738861870018,-672.55,0.00018354,2]
[351960706,1738861870027,-500.0,0.00018354,2]
[351960707,1738861870037,-874.6,0.00018354,2]
[351960708,1738861870048,-500.0,0.00018354,2]
[351960709,1738861870057,-642.87,0.00018354,2]
[351960710,1738861870067,-607.11,0.00018354,2]
[351960711,1738861870076,-500.0,0.00018354,2]
[351960712,1738861870086,-500.0,0.00018354,2]
[351960713,1738861870095,-1058.07,0.00018354,2]
[351960714,1738861870105,-2325.74,0.00018354,2]
[351960715,1738861870115,-577.77,0.00018354,2]
[351960716,1738861870125,-500.0,0.00018354,2]
[351960717,1738861870135,-500.0,0.00018354,2]
[351960718,1738861870146,-500.0,0.00018354,2]
[351960719,1738861870156,-500.0,0.00018354,2]
[351960720,1738861870167,-500.0,0.00018354,2]
[351960721,1738861870177,-910.94,0.00018354,2]
[351960722,1738861870187,-589.83,0.00018354,2]
[351960723,1738861870198,-500.0,0.00018354,2]
[351960724,1738861870208,-500.0,0.00018354,2]
[351960725,1738861870218,-500.0,0.00018354,2]
[351960726,1738861870228,-785.95,0.00018354,2]
[351960727,1738861870237,-812.17,0.00018354,2]
[351960728,1738861870247,-500.0,0.00018354,2]
[351960729,1738861870257,-500.0,0.00018354,2]
[351960730,1738861870267,-970.04,0.00018354,2]
[351960731,1738861870281,-550.87,0.00018354,2]
[351960732,1738861870291,-500.0,0.00018354,2]
[351960733,1738861870301,-622.89,0.00018354,2]
[351960734,1738861870311,-500.0,0.00018354,2]
[351960735,1738861870320,-940.72,0.00018354,2]
[351960736,1738861870331,-500.0,0.00018354,2]
[351960737,1738861870340,-527.23,0.00018354,2]
[351960738,1738861870351,-687.44,0.00018354,2]
[351960739,1738861870362,-865.53,0.00018354,2]
[351960740,1738861870382,-646.69,0.00018354,2]
[351960741,1738861870394,-500.0,0.00018354,2]
[351960742,1738861870404,-500.0,0.00018354,2]
[351960743,1738861870413,-1138.12,0.00018354,2]
[351960744,1738861870423,-500.0,0.00018354,2]
[351960745,1738861870432,-1066.17,0.00018354,2]
[351960746,1738861870442,-500.0,0.00018354,2]
[351960747,1738861870451,-500.0,0.00018354,2]
[351960748,1738861870461,-500.0,0.00018354,2]
[351960749,1738861870472,-1133.21,0.00018354,2]
[351960750,1738861870482,-1379.38,0.00018354,2]
[351960751,1738861870491,-1088.33,0.00018354,2]
[351960752,1738861870501,-2580.85,0.00018354,2]
[351960753,1738861870510,-500.0,0.00018354,2]
[351960754,1738861870520,-507.71,0.00018354,2]
[351960755,1738861870530,-570.24,0.00018354,2]
[351960756,1738861870540,-500.0,0.00018354,2]
[351960757,1738861870550,-829.91,0.00018354,2]
[351960758,1738861870559,-500.0,0.00018354,2]
[351960759,1738861870569,-501.42,0.00018354,2]
[351960760,1738861870578,-1418.09,0.00018354,2]
[351960761,1738861870588,-699.42,0.00018354,2]
[351960762,1738861870598,-1474.87,0.00018354,2]
[351960763,1738861870608,-500.0,0.00018354,2]
[351960764,1738861870617,-953.52,0.00018354,2]
[351960765,1738861870627,-500.0,0.00018354,2]
[351960766,1738861870638,-500.0,0.00018354,2]
[351960767,1738861870648,-902.61,0.00018354,2]
[351960768,1738861870657,-500.0,0.00018354,2]
[351960769,1738861870667,-1661.17,0.00018354,2]
[351960770,1738861870676,-1847.77,0.00018354,2]
[351960771,1738861870686,-1733.71,0.00018354,2]
[351960772,1738861870695,-625.07,0.00018354,2]
[351960773,1738861870705,-667.58,0.00018354,2]
[351960774,1738861870715,-1416.66,0.00018354,2]
[351960775,1738861870725,-500.0,0.00018354,2]
[351960776,1738861870735,-500.0,0.00018354,2]
[351960777,1738861870745,-1420.72,0.00018354,2]
[351960778,1738861870755,-1568.96,0.00018354,2]
[351960779,1738861870765,-672.97,0.00018354,2]
[351960780,1738861870774,-843.46,0.00018354,2]
[351960781,1738861870784,-1370.61,0.00018354,2]
[351960782,1738861870793,-500.0,0.00018354,2]
[351960783,1738861870803,-753.37,0.00018354,2]
[351960784,1738861870813,-1322.14,0.00018354,2]
[351960785,1738861870823,-2840.59,0.00018354,2]
[351960786,1738861870832,-500.0,0.00018354,2]
[351960787,1738861870842,-521.51,0.00018354,2]
[351960788,1738861870851,-3947.98,0.00018354,2]
[351960789,1738861870860,-1271.81,0.00018354,2]
[351960790,1738861870870,-708.72,0.00018354,2]
[351960791,1738861870880,-791.7,0.00018354,2]
[351960792,1738861870891,-500.0,0.00018354,2]
[351960793,1738861870900,-1069.89,0.00018354,2]
[351960794,1738861870911,-1042.41,0.00018354,2]
[351960795,1738861870920,-957.73,0.00018354,2]
[351960796,1738861870930,-1571.35,0.00018354,2]
[351960797,1738861870940,-1606.61,0.00018354,2]
[351960798,1738861870950,-519.25,0.00018354,2]
[351960799,1738861870959,-1542.73,0.00018354,2]
[351960800,1738861870969,-692.64,0.00018354,2]
[351960801,1738861870979,-657.02,0.00018354,2]
[351960802,1738861870988,-584.58,0.00018354,2]
[351960803,1738861870997,-1586.74,0.00018354,2]
[351960804,1738861871007,-578.78,0.00018354,2]
[351960805,1738861871017,-1730.87,0.00018354,2]
[351960806,1738861871026,-500.0,0.00018354,2]
[351960807,1738861871035,-681.25,0.00018354,2]
[351960808,1738861871046,-682.56,0.00018354,2]
[351960809,1738861871056,-500.0,0.00018354,2]
[351960810,1738861871066,-1123.68,0.00018354,2]
[351960811,1738861871076,-500.0,0.00018354,2]
[351960812,1738861871086,-839.75,0.00018354,2]
[351960813,1738861871095,-1377.35,0.00018354,2]
[351960814,1738861871105,-1194.33,0.00018354,2]
[351960815,1738861871115,-742.25,0.00018354,2]
[351960816,1738861871126,-528.18,0.00018354,2]
[351960817,1738861871138,-2239.71,0.00018354,2]
[351960818,1738861871148,-729.85,0.00018354,2]
[351960819,1738861871157,-500.0,0.00018354,2]
[351960820,1738861871166,-1212.61,0.00018354,2]
[351960821,1738861871175,-500.0,0.00018354,2]
[351960822,1738861871186,-514.18,0.00018354,2]
[351960823,1738861871196,-689.8,0.00018354,2]
[351960824,1738861871207,-533.13,0.00018354,2]
[351960825,1738861871217,-500.0,0.00018354,2]
[351960826,1738861871227,-929.26,0.00018354,2]
[351960827,1738861871238,-738.95,0.00018354,2]
[351960828,1738861871248,-539.89,0.00018354,2]
[351960829,1738861871258,-500.0,0.00018354,2]
[351960830,1738861871267,-654.59,0.00018354,2]
[351960831,1738861871280,-766.1,0.00018354,2]
[351960832,1738861871290,-1727.76,0.00018354,2]
[351960833,1738861871299,-2394.19,0.00018354,2]
[351960834,1738861871309,-500.0,0.00018354,2]
[351960835,1738861871318,-605.86,0.00018354,2]
[351960836,1738861871328,-651.71,0.00018354,2]
[351960837,1738861871339,-500.0,0.00018354,2]
[351960838,1738861871349,-500.0,0.00018354,2]
[351960839,1738861871359,-1000.0,0.00018354,2]
[351960840,1738861871369,-500.0,0.00018354,2]
[351960841,1738861871378,-1210.31,0.00018354,2]
[351960842,1738861871389,-721.6,0.00018354,2]
[351960843,1738861871401,-504.71,0.00018354,2]
[351960844,1738861871411,-500.0,0.00018354,2]
[351960845,1738861871420,-1238.99,0.00018354,2]
[351960846,1738861871429,-862.22,0.00018354,2]
[351960847,1738861871439,-500.0,0.00018354,2]
[351960848,1738861871448,-646.48,0.00018355,2]
[351960849,1738861871458,-882.64,0.00018355,2]
[351960850,1738861871467,-500.0,0.00018355,2]
[351960851,1738861871476,-1322.52,0.00018355,2]
[351960852,1738861871486,-500.0,0.00018355,2]
[351960853,1738861871495,-860.43,0.00018355,2]
[351960854,1738861871505,-618.33,0.00018355,2]
[351960855,1738861871514,-882.18,0.00018355,2]
[351960856,1738861871523,-500.0,0.00018355,2]
[351960857,1738861871587,-1093.09,0.00018355,2]
[351960858,1738861871598,-801.19,0.00018355,2]
[351960859,1738861871608,-735.64,0.00018355,2]
[351960860,1738861871617,-773.55,0.00018355,2]
[351960861,1738861871626,-512.91,0.00018355,2]
[351960862,1738861871635,-550.45,0.00018355,2]
[351960863,1738861871650,-647.51,0.00018355,2]
[351960864,1738861871659,-612.38,0.00018355,2]
[351960865,1738861871669,-500.0,0.00018355,2]
[351960866,1738861871679,-980.57,0.00018355,2]
[351960867,1738861871689,-515.98,0.00018355,2]
[351960868,1738861871698,-795.41,0.00018355,2]
[351960869,1738861871707,-500.0,0.00018355,2]
[351960870,1738861871717,-1166.1,0.00018355,2]
[351960871,1738861871727,-841.63,0.00018355,2]
[351960872,1738861871737,-564.64,0.00018355,2]
[351960873,1738861871746,-842.75,0.00018355,2]
[351960874,1738861871756,-549.06,0.00018355,2]
[351960875,1738861871766,-500.0,0.00018355,2]
[351960876,1738861871777,-838.7,0.00018355,2]
[351960877,1738861871786,-871.1,0.00018355,2]
[351960878,1738861871795,-500.0,0.00018355,2]
[351960879,1738861871804,-549.37,0.00018355,2]
[351960880,1738861871814,-888.81,0.00018355,2]
[351960881,1738861871823,-635.82,0.00018355,2]
[351960882,1738861871833,-500.0,0.00018355,2]
[351960883,1738861871842,-758.24,0.00018355,2]
[351960884,1738861871851,-887.86,0.00018355,2]
[351960885,1738861871860,-751.66,0.00018355,2]
[351960886,1738861871869,-817.88,0.00018355,2]
[351960887,1738861871878,-572.42,0.00018355,2]
[351960888,1738861871887,-500.0,0.00018355,2]
[351960889,1738861871899,-754.86,0.00018355,2]
[351960890,1738861871909,-678.78,0.00018355,2]
[351960891,1738861871918,-661.11,0.00018355,2]
[351960892,1738861871928,-500.0,0.00018355,2]
[351960893,1738861871937,-500.0,0.00018355,2]
[351960894,1738861871947,-318.47751891,0.00018355,2]
[351960895,1738861871956,-500.0,0.00018355,2]
[351960896,1738861871966,-500.0,0.00018355,2]
[351960897,1738861871975,-500.0,0.00018355,2]
[351960898,1738861871984,-505.27,0.00018355,2]
[351960899,1738861871994,-500.0,0.00018355,2]
[351960900,1738861872003,-500.0,0.00018355,2]
[351960901,1738861872014,-500.0,0.00018355,2]
[351960902,1738861872024,-542.84,0.00018355,2]
[351960903,1738861872033,-500.0,0.00018355,2]
[351960904,1738861872043,-568.48,0.00018355,2]
[351960905,1738861872052,-500.0,0.00018355,2]
[351960906,1738861872062,-810.69,0.00018355,2]
[351960907,1738861872071,-500.0,0.00018355,2]
[351960908,1738861872080,-200.0,0.00018356,2]
[351960909,1738861872090,-200.0,0.00018356,2]
[351960910,1738861872099,-200.0,0.00018356,2]
[351960911,1738861872108,-1450.36014,0.00018356,2]
[351960912,1738861872117,-200.0,0.00018356,2]
[351960913,1738861872127,-18580.87,0.00018356,2]
[351960914,1738861872136,-4943.19983026,0.00018391,2]
[351960915,1738861872149,-787.07,0.00018408,2]
[351960916,1738861872159,-677.64,0.0001849,2]
[351960917,1738861872167,-2320.36,0.0001849,2]
[351960918,1738861872177,-1057.3,0.0001849,2]
[351960919,1738861872186,-1390.44,0.0001849,2]
[351960920,1738861872196,-702.27,0.0001849,2]
[351960921,1738861872206,-1330.76,0.0001849,2]
[351960922,1738861872216,-1549.77,0.0001849,2]
[351960923,1738861872225,-1149.66,0.0001849,2]
[351960924,1738861872235,-500.0,0.0001849,2]
[351960925,1738861872246,-1130.88,0.0001849,2]
[351960926,1738861872256,-158.016599,0.0001849,2]
[351960927,1738861872266,-1058.42,0.0001849,2]
[351960928,1738861872278,-591.92,0.0001849,2]
[351960929,1738861872288,-919.01,0.0001849,2]
[351960930,1738861872297,-1259.14,0.0001849,2]
[351960931,1738861872307,-2902.47,0.0001849,2]
[351960932,1738861872319,-1080.79,0.0001849,2]
[351960933,1738861872328,-1591.11,0.0001849,2]
[351960934,1738861872338,-1302.97,0.0001849,2]
[351960935,1738861872348,-1528.37,0.0001849,2]
[351960936,1738861872360,-1378.0,0.0001849,2]
[351960937,1738861872370,-1928.71,0.0001849,2]
[351960938,1738861872381,-1701.03,0.0001849,2]
[351960939,1738861872392,-1215.91,0.0001849,2]
[351960940,1738861872402,-1505.03,0.0001849,2]
[351960941,1738861872411,-3013.77,0.0001849,2]
[351960942,1738861872420,-936.5,0.0001849,2]
[351960943,1738861872429,-1793.39,0.0001849,2]
[351960944,1738861872439,-1477.06,0.0001849,2]
[351960945,1738861872450,-1577.4,0.0001849,2]
[351960946,1738861872459,-5300.74,0.0001849,2]
[351960947,1738861872468,-1169.73,0.0001849,2]
[351960948,1738861872478,-2574.15,0.0001849,2]
[351960949,1738861872488,-2515.4,0.0001849,2]
[351960950,1738861872498,-2027.32,0.0001849,2]
[351960951,1738861872507,-2110.85,0.0001849,2]
[351960952,1738861872516,-1476.55,0.0001849,2]
[351960953,1738861872526,-1529.46,0.0001849,2]
[351960954,1738861872535,-2849.47,0.0001849,2]
[351960955,1738861872545,-1830.91,0.0001849,2]
[351960956,1738861872555,-3547.39,0.0001849,2]
[351960957,1738861872564,-1971.2,0.0001849,2]
[351960958,1738861872573,-538.14532711,0.0001849,2]
[351960959,1738861872582,-1234.07,0.0001849,2]
[351960960,1738861872591,-500.0,0.0001849,2]
[351960961,1738861872600,-1544.59,0.0001849,2]
[351960962,1738861872609,-1656.43,0.0001849,2]
[351960963,1738861872618,-1394.51,0.0001849,2]
[351960964,1738861872627,-3743.69,0.0001849,2]
[351960965,1738861872637,-963.12,0.0001849,2]
[351960966,1738861872647,-1700.26,0.0001849,2]
[351960967,1738861872657,-1311.59,0.0001849,2]
[351960968,1738861872666,-1736.78,0.0001849,2]
[351960969,1738861872676,-1017.17,0.0001849,2]
[351960970,1738861872685,-576.03,0.00018491,2]
[351960971,1738861872695,-568.39,0.00018491,2]
[351960972,1738861872705,-500.0,0.00018491,2]
[351960973,1738861872714,-1104.41,0.00018491,2]
[351960974,1738861872723,-1065.42,0.00018491,2]
[351960975,1738861872733,-689.15,0.00018491,2]
[351960976,1738861872743,-500.0,0.00018491,2]
[351960977,1738861872752,-500.0,0.00018491,2]
[351960978,1738861872761,-500.0,0.00018491,2]
[351960979,1738861872770,-500.0,0.00018491,2]
[351960980,1738861872780,-1002.74,0.00018491,2]
[351960981,1738861872788,-692.54,0.00018491,2]
[351960982,1738861872797,-738.1,0.00018491,2]
[351960983,1738861872806,-595.37,0.00018491,2]
[351960984,1738861872815,-500.0,0.00018491,2]
[351960985,1738861872825,-301.41449603,0.00018491,2]
[351960986,1738861872835,-863.61,0.00018491,2]
[351960987,1738861872844,-645.84,0.00018491,2]
[351960988,1738861872854,-500.0,0.00018491,2]
[351960989,1738861872863,-596.44,0.00018491,2]
[351960990,1738861872872,-800.76,0.00018491,2]
[351960991,1738861872881,-777.26,0.00018491,2]
[351960992,1738861872892,-500.0,0.00018491,2]
[351960993,1738861872902,-542.65356856,0.00018491,2]
[351960994,1738861872911,-548.07,0.00018491,2]
[351960995,1738861872920,-500.0,0.00018491,2]
[351960996,1738861872930,-500.0,0.00018491,2]
[351960997,1738861872939,-500.0,0.00018491,2]
[351960998,1738861872948,-672.55,0.00018491,2]
[351960999,1738861872957,-500.0,0.00018491,2]
[351961000,1738861872967,-874.6,0.00018491,2]
[351961001,1738861872976,-500.0,0.00018491,2]
[351961002,1738861872985,-642.87,0.00018491,2]
[351961003,1738861872994,-607.11,0.00018491,2]
[351961004,1738861873003,-500.0,0.00018491,2]
[351961005,1738861873012,-500.0,0.00018491,2]
[351961006,1738861873022,-1058.07,0.00018491,2]
[351961007,1738861873031,-2325.74,0.00018491,2]
[351961008,1738861873040,-577.77,0.00018491,2]
[351961009,1738861873049,-500.0,0.00018491,2]
[351961010,1738861873059,-500.0,0.00018491,2]
[351961011,1738861873068,-500.0,0.00018491,2]
[351961012,1738861873078,-500.0,0.00018491,2]
[351961013,1738861873087,-500.0,0.00018491,2]
[351961014,1738861873096,-910.94,0.00018491,2]
[351961015,1738861873106,-589.83,0.00018491,2]
[351961016,1738861873115,-500.0,0.00018491,2]
[351961017,1738861873125,-500.0,0.00018491,2]
[351961018,1738861873135,-500.0,0.00018491,2]
[351961019,1738861873146,-785.95,0.00018491,2]
[351961020,1738861873157,-812.17,0.00018491,2]
[351961021,1738861873166,-511.2222437,0.00018491,2]
[351961022,1738861873177,-500.0,0.00018491,2]
[351961023,1738861873186,-970.04,0.00018491,2]
[351961024,1738861873195,-550.87,0.00018491,2]
[351961025,1738861873204,-500.0,0.00018491,2]
[351961026,1738861873214,-622.89,0.00018491,2]
[351961027,1738861873223,-500.0,0.00018491,2]
[351961028,1738861873233,-940.72,0.00018491,2]
[351961029,1738861873242,-500.0,0.00018491,2]
[351961030,1738861873251,-527.23,0.00018491,2]
[351961031,1738861873260,-687.44,0.00018491,2]
[351961032,1738861873273,-865.53,0.00018491,2]
[351961033,1738861873283,-646.69,0.00018491,2]
[351961034,1738861873293,-500.0,0.00018491,2]
[351961035,1738861873302,-500.0,0.00018491,2]
[351961036,1738861873313,-1138.12,0.00018491,2]
[351961037,1738861873323,-518.71,0.00018491,2]
[351961038,1738861873332,-1066.17,0.00018491,2]
[351961039,1738861873342,-500.0,0.00018491,2]
[351961040,1738861873352,-500.0,0.00018491,2]
[351961041,1738861873362,-500.0,0.00018491,2]
[351961042,1738861873371,-1133.21,0.00018491,2]
[351961043,1738861873381,-1379.38,0.00018491,2]
[351961044,1738861873392,-1088.33,0.00018491,2]
[351961045,1738861873401,-2580.85,0.00018491,2]
[351961046,1738861873411,-500.0,0.00018491,2]
[351961047,1738861873420,-507.71,0.00018491,2]
[351961048,1738861873430,-570.24,0.00018491,2]
[351961049,1738861873439,-500.0,0.00018491,2]
[351961050,1738861873449,-829.91,0.00018491,2]
[351961051,1738861873458,-500.0,0.00018491,2]
[351961052,1738861873468,-501.42,0.00018491,2]
[351961053,1738861873477,-1418.09,0.00018491,2]
[351961054,1738861873487,-699.42,0.00018491,2]
[351961055,1738861873496,-1474.87,0.00018491,2]
[351961056,1738861873506,-500.0,0.00018491,2]
[351961057,1738861873515,-953.52,0.00018491,2]
[351961058,1738861873524,-500.0,0.00018491,2]
[351961059,1738861873534,-500.0,0.00018491,2]
[351961060,1738861873543,-902.61,0.00018491,2]
[351961061,1738861873553,-500.0,0.00018491,2]
[351961062,1738861873563,-1661.17,0.00018491,2]
[351961063,1738861873572,-1847.77,0.00018491,2]
[351961064,1738861873582,-1733.71,0.00018491,2]
[351961065,1738861873591,-625.07,0.00018491,2]
[351961066,1738861873600,-667.58,0.00018491,2]
[351961067,1738861873610,-1416.66,0.00018491,2]
[351961068,1738861873620,-500.0,0.00018491,2]
[351961069,1738861873630,-500.0,0.00018491,2]
[351961070,1738861873640,-1420.72,0.00018491,2]
[351961071,1738861873650,-1568.96,0.00018491,2]
[351961072,1738861873660,-672.97,0.00018491,2]
[351961073,1738861873670,-843.46,0.00018491,2]
[351961074,1738861873680,-1370.61,0.00018491,2]
[351961075,1738861873690,-500.0,0.00018491,2]
[351961076,1738861873699,-753.37,0.00018491,2]
[351961077,1738861873710,-1322.14,0.00018491,2]
[351961078,1738861873719,-2840.59,0.00018491,2]
[351961079,1738861873729,-500.0,0.00018491,2]
[351961080,1738861873739,-521.51,0.00018491,2]
[351961081,1738861873749,-3947.98,0.00018491,2]
[351961082,1738861873759,-1271.81,0.00018491,2]
[351961083,1738861873771,-708.72,0.00018491,2]
[351961084,1738861873781,-791.7,0.00018491,2]
[351961085,1738861873791,-369.09801824,0.00018491,2]
[351961086,1738861873801,-1069.89,0.00018491,2]
[351961087,1738861873811,-1042.41,0.00018491,2]
[351961088,1738861873821,-957.73,0.00018491,2]
[351961089,1738861873831,-1571.35,0.00018491,2]
[351961090,1738861873840,-1606.61,0.00018491,2]
[351961091,1738861873850,-519.25,0.00018491,2]
[351961092,1738861873859,-1542.73,0.00018491,2]
[351961093,1738861873869,-692.64,0.00018491,2]
[351961094,1738861873879,-657.02,0.00018491,2]
[351961095,1738861873888,-584.58,0.00018491,2]
[351961096,1738861873898,-1586.74,0.00018491,2]
[351961097,1738861873907,-578.78,0.00018491,2]
[351961098,1738861873918,-1730.87,0.00018491,2]
[351961099,1738861873928,-500.0,0.00018491,2]
[351961100,1738861873938,-681.25,0.00018491,2]
[351961101,1738861873949,-682.56,0.00018491,2]
[351961102,1738861873959,-500.0,0.00018491,2]
[351961103,1738861873969,-1123.68,0.00018491,2]
[351961104,1738861873979,-500.0,0.00018491,2]
[351961105,1738861873989,-839.75,0.00018491,2]
[351961106,1738861873999,-1377.35,0.00018491,2]
[351961107,1738861874009,-1194.33,0.00018491,2]
[351961108,1738861874019,-742.25,0.00018491,2]
[351961109,1738861874028,-528.18,0.00018491,2]
[351961110,1738861874039,-2239.71,0.00018491,2]
[351961111,1738861874050,-729.85,0.00018491,2]
[351961112,1738861874059,-500.0,0.00018491,2]
[351961113,1738861874069,-1212.61,0.00018491,2]
[351961114,1738861874079,-500.0,0.00018491,2]
[351961115,1738861874089,-514.18,0.00018491,2]
[351961116,1738861874099,-689.8,0.00018491,2]
[351961117,1738861874109,-533.13,0.00018491,2]
[351961118,1738861874119,-500.0,0.00018491,2]
[351961119,1738861874129,-929.26,0.00018491,2]
[351961120,1738861874139,-738.95,0.00018491,2]
[351961121,1738861874150,-539.89,0.00018491,2]
[351961122,1738861874160,-500.0,0.00018491,2]
[351961123,1738861874169,-654.59,0.00018491,2]
[351961124,1738861874179,-766.1,0.00018491,2]
[351961125,1738861874189,-1727.76,0.00018491,2]
[351961126,1738861874199,-2394.19,0.00018491,2]
[351961127,1738861874209,-500.0,0.00018491,2]
[351961128,1738861874218,-605.86,0.00018491,2]
[351961129,1738861874228,-651.71,0.00018491,2]
[351961130,1738861874238,-500.0,0.00018491,2]
[351961131,1738861874248,-500.0,0.00018491,2]
[351961132,1738861874260,-1000.0,0.00018491,2]
[351961133,1738861874275,-500.0,0.00018491,2]
[351961134,1738861874287,-1210.31,0.00018491,2]
[351961135,1738861874298,-721.6,0.00018491,2]
[351961136,1738861874309,-504.71,0.00018491,2]
[351961137,1738861874322,-500.0,0.00018491,2]
[351961138,1738861874334,-1238.99,0.00018491,2]
[351961139,1738861874346,-862.22,0.00018491,2]
[351961140,1738861874359,-500.0,0.00018491,2]
[351961141,1738861874371,-646.48,0.00018492,2]
[351961142,1738861874383,-882.64,0.00018492,2]
[351961143,1738861874395,-500.0,0.00018492,2]
[351961144,1738861874407,-1322.52,0.00018492,2]
[351961145,1738861874418,-500.0,0.00018492,2]
[351961146,1738861874429,-860.43,0.00018492,2]
[351961147,1738861874439,-618.33,0.00018492,2]